bitfinex-derivatives/quotes_ETHF0:USTF0_20210107
["timestamp","ask_amount","ask_price","bid_price","bid_amount"]
[1609977992780,4.00959,1201.7,1195.8,30.0]
[1609977994484,4.00959,1201.7,1196.7,63.5387]
[1609977994684,4.00959,1201.7,1196.7,93.5387]
[1609977994892,5.0,1202.0,1199.5,4.00959]
[1609977996392,6.6544,1202.0,1199.5,4.00959]
[1609977996785,4.00959,1200.8,1200.0,4.00959]
[1609977996984,6.6544,1202.0,1200.0,4.00959]
[1609977997284,5.0,1202.0,1200.0,4.00959]
[1609977998785,4.00959,1200.6,1199.6,4.00959]
[1609977999786,4.00959,1200.6,1196.7,93.5387]
[1609978000386,4.00959,1200.6,1196.7,63.5387]
[1609978000786,4.00959,1198.9,1198.6,4.00959]
[1609978001189,4.00959,1198.9,1196.7,63.5387]
[1609978001791,3.4183,1200.6,1196.7,63.5387]
[1609978002789,4.00959,1199.5,1198.8,4.00959]
[1609978003990,3.4183,1200.6,1198.8,4.00959]
[1609978004192,2.7123,1201.0,1198.8,4.00959]
[1609978004797,4.00959,1199.4,1199.1,4.00959]
[1609978004997,1.6715,1200.2,1199.1,4.00959]
[1609978005193,58.1872,1201.2,1197.7,63.6554]
[1609978006095,59.872,1201.2,1197.7,63.6554]
[1609978006796,4.00959,1199.1,1197.7,63.6554]
[1609978007701,58.1872,1201.2,1197.7,63.6554]
[1609978008296,58.1872,1201.2,1197.8,30.0]
[1609978008496,58.1872,1201.2,1197.7,63.6554]
[1609978008896,58.1872,1201.2,1199.2,4.00959]
[1609978009098,59.8458,1201.2,1199.2,4.00959]
[1609978009597,1.6586,1201.2,1199.2,4.00959]
[1609978009897,2.7631,1201.3,1199.2,4.00959]
[1609978010199,5.0,1202.0,1199.2,4.00959]
[1609978010896,4.00959,1200.4,1199.7,4.00959]
[1609978011097,5.68329,1200.4,1199.7,4.00959]
[1609978011400,2.9941,1201.4,1199.7,4.00959]
[1609978012801,4.00959,1200.4,1199.7,4.00959]
[1609978012999,4.00959,1200.4,1198.5,49.1549]
[1609978013200,4.00959,1200.4,1196.0,30.0]
[1609978014100,4.00959,1200.4,1193.7,30.0]
[1609978014300,4.00959,1200.4,1196.1,30.0]
[1609978014900,2.9941,1201.4,1196.1,30.0]
[1609978015200,2.9941,1201.4,1193.7,30.0]
[1609978016201,5.0,1202.0,1193.7,30.0]
[1609978017002,4.00959,1199.5,1193.7,30.0]
[1609978018005,6.53039,1199.5,1193.7,30.0]
[1609978018806,4.00959,1198.2,1198.1,4.00959]
[1609978019006,4.00959,1198.2,1193.7,30.0]
[1609978019807,2.5208,1199.5,1193.7,30.0]
[1609978020509,3.1364,1200.1,1193.7,30.0]
[1609978020808,4.00959,1198.4,1198.1,4.00959]
[1609978021509,2.6523,1199.6,1198.1,4.00959]
[1609978022209,2.6523,1199.6,1193.7,30.0]
[1609978022610,2.6523,1199.6,1195.3,49.1624]
[1609978022809,4.00959,1197.5,1197.1,4.00959]
[1609978023310,4.00959,1197.5,1195.3,49.1624]
[1609978023712,5.68679,1197.5,1195.3,49.1624]
[1609978024117,4.00959,1197.5,1195.3,49.1624]
[1609978024916,4.00959,1196.2,1195.4,4.00959]
[1609978025817,4.00959,1196.2,1195.3,49.1624]
[1609978026818,4.00959,1195.8,1195.3,49.1624]
[1609978027518,2.4994,1197.4,1195.3,49.1624]
[1609978028319,3.12,1197.7,1195.3,49.1624]
[1609978028818,4.00959,1196.2,1196.1,4.00959]
[1609978029019,4.00959,1196.2,1195.3,49.1624]
[1609978030922,4.00959,1195.6,1195.3,49.1624]
[1609978032122,4.00959,1195.6,1193.6,5.6078]
[1609978032925,59.01,1196.3,1194.9,4.00959]
[1609978033125,59.01,1196.3,1193.5,53.0001]
[1609978034428,55.937,1196.3,1193.5,53.0001]
[1609978034830,4.00959,1195.8,1195.5,4.00959]
[1609978036028,55.937,1196.3,1195.5,4.00959]
[1609978036931,4.00959,1196.2,1195.8,4.00959]
[1609978037132,4.00959,1196.2,1193.7,5.5827]
[1609978037934,55.937,1196.3,1193.8,30.0]
[1609978038835,55.937,1196.3,1196.2,4.00959]
[1609978039035,55.937,1196.3,1193.7,5.5827]
[1609978040838,55.937,1196.3,1196.2,4.00959]
[1609978041140,55.937,1196.3,1193.7,5.5827]
[1609978041340,4.00959,1196.7,1193.7,5.5827]
[1609978042842,4.00959,1196.3,1195.3,4.00959]
[1609978043345,56.9988,1197.7,1195.3,4.00959]
[1609978044246,5.0,1197.0,1195.3,4.00959]
[1609978044846,4.00959,1196.2,1195.3,4.00959]
[1609978045648,5.0,1197.0,1195.3,4.00959]
[1609978047050,4.00959,1196.8,1193.7,5.5827]
[1609978048852,4.00959,1196.8,1194.9,4.00959]
[1609978049050,5.0,1197.0,1194.9,4.00959]
[1609978049051,4.00959,1195.9,1194.9,4.00959]
[1609978049247,4.00959,1195.9,1193.7,5.5827]
[1609978051050,4.00959,1195.7,1195.1,4.00959]
[1609978051250,4.00959,1195.7,1193.6,5.6403]
[1609978051568,4.00959,1195.7,1193.4,59.9995]
[1609978052949,4.00959,1194.5,1193.8,4.00959]
[1609978054350,2.2568,1196.3,1193.8,4.00959]
[1609978054951,4.00959,1195.1,1194.1,4.00959]
[1609978055152,4.00959,1195.1,1193.4,59.9995]
[1609978056955,4.00959,1195.1,1194.3,4.00959]
[1609978058254,4.00959,1195.1,1193.4,59.9995]
[1609978059055,4.00959,1195.1,1194.3,4.00959]
[1609978060059,54.4657,1196.1,1194.3,4.00959]
[1609978060258,2.9839,1196.6,1194.3,4.00959]
[1609978060557,5.834,1196.8,1194.3,4.00959]
[1609978061159,4.00959,1195.8,1191.3,35.8766]
[1609978062959,4.00959,1195.6,1195.3,4.00959]
[1609978063459,4.00959,1195.6,1191.3,35.8766]
[1609978064964,4.00959,1195.6,1194.8,4.00959]
[1609978066964,4.00959,1194.9,1194.8,4.00959]
[1609978067364,2.3632,1196.8,1194.8,4.00959]
[1609978067765,2.3632,1196.8,1191.3,35.8766]
[1609978068967,4.00959,1195.2,1194.8,4.00959]
[1609978069366,4.00959,1195.2,1191.3,35.8766]
[1609978069568,4.00959,1195.2,1193.4,55.6968]
[1609978070971,4.00959,1195.2,1195.1,4.00959]
[1609978071171,4.00959,1195.2,1193.4,55.6968]
[1609978073079,4.00959,1194.4,1193.5,4.00959]
[1609978074982,2.716,1195.8,1193.4,55.6968]
[1609978076787,55.2383,1196.1,1193.4,55.6968]
[1609978076986,55.2383,1196.1,1194.6,4.00959]
[1609978077387,55.2383,1196.1,1193.4,55.6968]
[1609978078887,64.551,1196.2,1193.4,52.8768]
[1609978079089,4.00959,1195.3,1193.4,52.8768]
[1609978079289,64.551,1196.2,1193.4,52.8768]
[1609978080991,4.00959,1195.6,1193.4,52.8768]
[1609978082997,4.00959,1195.6,1195.3,4.00959]
[1609978083496,64.551,1196.2,1193.5,5.6617]
[1609978083896,64.551,1196.2,1193.6,6.1134]
[1609978084899,64.551,1196.2,1193.4,52.8768]
[1609978085103,4.00959,1194.6,1193.4,52.8768]
[1609978087104,4.00959,1194.3,1193.4,52.8768]
[1609978087905,5.0,1195.0,1193.4,52.8768]
[1609978088206,5.0,1195.0,1192.0,6.0465]
[1609978089106,4.00959,1194.6,1194.4,4.00959]
[1609978089705,4.00959,1194.6,1192.0,6.0465]
[1609978091107,4.00959,1193.8,1193.0,4.00959]
[1609978092309,4.00959,1193.8,1192.0,6.0465]
[1609978093009,5.0,1195.0,1193.5,4.00959]
[1609978093211,5.0,1195.0,1192.0,6.0465]
[1609978096113,5.0,1195.0,1192.0,36.0465]
[1609978097014,9.00959,1195.0,1194.5,4.00959]
[1609978097216,9.00959,1195.0,1192.0,36.0465]
[1609978097516,5.0,1195.0,1192.0,36.0465]
[1609978097716,5.0,1195.0,1192.3,67.7471]
[1609978097918,5.0,1195.0,1192.4,30.0]
[1609978099021,9.00959,1195.0,1194.9,4.00959]
[1609978099320,9.00959,1195.0,1192.4,30.0]
[1609978101022,9.00959,1195.0,1194.9,4.00959]
[1609978101224,9.00959,1195.0,1192.4,30.0]
[1609978101724,5.0,1195.0,1192.4,30.0]
[1609978101922,5.0,1195.0,1192.4,35.7411]
[1609978102924,5.0,1195.0,1192.3,73.7665]
[1609978105026,5.0,1195.0,1193.8,4.00959]
[1609978105224,5.0,1195.0,1192.3,73.7665]
[1609978105726,7.6824,1195.0,1192.3,67.7471]
[1609978106931,61.9327,1194.4,1191.3,65.6109]
[1609978107130,61.9327,1194.4,1192.9,4.00959]
[1609978107730,61.9327,1194.4,1191.3,65.6109]
[1609978108830,64.5206,1194.4,1191.3,65.6109]
[1609978109130,4.00959,1192.6,1192.3,4.00959]
[1609978111132,4.00959,1192.4,1192.3,4.00959]
[1609978112336,4.00959,1192.4,1191.3,65.6109]
[1609978113237,4.00959,1192.4,1192.1,4.00959]
[1609978113735,2.9929,1193.9,1192.1,4.00959]
[1609978114136,6.083,1194.3,1192.1,4.00959]
[1609978114937,61.9327,1194.4,1192.1,4.00959]
[1609978115238,61.9327,1194.4,1191.3,65.6109]
[1609978116341,58.7811,1194.5,1191.5,58.4953]
[1609978117241,4.00959,1192.6,1192.3,4.00959]
[1609978117442,58.7811,1194.5,1192.3,4.00959]
[1609978118547,88.7811,1194.5,1191.5,58.4953]
[1609978119046,91.0289,1194.5,1191.5,58.4953]
[1609978120250,30.0,1194.4,1191.5,58.4953]
[1609978121149,4.00959,1191.9,1191.7,4.00959]
[1609978121550,3.2676,1193.5,1191.7,4.00959]
[1609978122650,91.0289,1194.5,1191.7,4.00959]
[1609978123156,4.00959,1192.3,1191.9,4.00959]
[1609978124053,3.2223,1193.9,1191.9,4.00959]
[1609978125257,3.2223,1193.9,1191.5,58.4953]
[1609978125258,4.00959,1192.4,1192.1,4.00959]
[1609978125458,3.2223,1193.9,1192.1,4.00959]
[1609978125759,61.6046,1193.8,1192.1,4.00959]
[1609978127260,4.00959,1192.8,1192.1,4.00959]
[1609978128062,61.6046,1193.8,1192.1,4.00959]
[1609978129363,61.6046,1193.8,1192.8,4.00959]
[1609978131265,4.00959,1193.3,1193.0,4.00959]
[1609978132166,4.00959,1193.3,1191.1,36.0526]
[1609978132366,3.40959,1193.3,1191.1,36.0526]
[1609978132565,3.40959,1193.3,1191.1,6.0526]
[1609978133270,61.6046,1193.8,1193.0,4.00959]
[1609978133469,61.6046,1193.8,1191.1,6.0526]
[1609978134272,61.6046,1193.8,1191.1,36.0526]
[1609978135170,49.1596,1194.2,1191.1,36.0526]
[1609978135370,49.1596,1194.2,1192.7,4.00959]
[1609978136072,49.1596,1194.2,1191.1,6.0526]
[1609978138571,49.1596,1194.2,1191.1,36.0526]
[1609978139273,4.00959,1193.2,1192.9,4.00959]
[1609978139773,49.1596,1194.2,1192.9,4.00959]
[1609978141174,52.8336,1194.2,1192.9,4.00959]
[1609978141374,4.00959,1193.7,1193.5,4.00959]
[1609978141876,52.8336,1194.2,1193.5,4.00959]
[1609978142275,52.8336,1194.2,1191.2,30.0]
[1609978143075,49.1596,1194.2,1191.2,30.0]
[1609978143376,4.00959,1194.1,1193.8,4.00959]
[1609978143674,49.1596,1194.2,1191.2,30.0]
[1609978144478,58.1355,1194.4,1192.0,62.7432]
[1609978145377,4.00959,1194.1,1192.0,62.7432]
[1609978145580,4.00959,1194.1,1192.0,92.7432]
[1609978145778,58.1355,1194.4,1192.0,92.7432]
[1609978147380,58.1355,1194.4,1194.3,4.00959]
[1609978148184,5.0,1195.0,1194.3,4.00959]
[1609978148586,5.0,1195.0,1194.3,34.00959]
[1609978149286,5.0,1195.0,1194.9,4.00959]
[1609978151290,4.00959,1197.9,1194.9,34.00959]
[1609978151891,11.4571,1200.4,1194.9,34.00959]
[1609978152090,41.4571,1200.4,1194.9,34.00959]
[1609978153498,41.4571,1200.4,1054.2,0.60466335]
[1609978153499,4.00959,1198.1,1197.6,4.00959]
[1609978155498,4.00959,1198.3,1198.0,4.00959]
[1609978157198,4.00959,1198.3,1196.0,61.1972]
[1609978157399,4.00959,1198.0,1197.6,4.00959]
[1609978157800,3.0564,1199.8,1197.6,4.00959]
[1609978159402,3.0564,1199.8,1196.0,61.1972]
[1609978160005,15.1311,1200.4,1196.0,61.1972]
[1609978160305,3.1767,1199.8,1196.0,61.1972]
[1609978161403,4.00959,1198.2,1197.6,4.00959]
[1609978163406,4.00959,1198.2,1198.1,4.00959]
[1609978164208,4.00959,1198.2,1196.6,48.0063]
[1609978165409,4.00959,1198.2,1198.1,4.00959]
[1609978165708,4.00959,1198.2,1196.6,48.0063]
[1609978167410,4.00959,1196.7,1196.6,48.0063]
[1609978167615,3.2278,1198.3,1196.6,48.0063]
[1609978169014,50.4544,1198.3,1196.2,4.00959]
[1609978169414,50.4544,1198.3,1195.8,53.1328]
[1609978171515,4.00959,1197.8,1196.9,4.00959]
[1609978172416,47.2266,1198.3,1196.9,4.00959]
[1609978172818,48.7156,1198.9,1196.9,4.00959]
[1609978173420,48.7156,1198.9,1197.5,4.00959]
[1609978173421,4.00959,1198.0,1197.5,4.00959]
[1609978173717,4.00959,1198.0,1196.4,55.9623]
[1609978175422,4.00959,1196.8,1196.5,4.00959]
[1609978175620,4.00959,1196.8,1196.4,55.9623]
[1609978176920,4.00959,1196.8,1195.7,46.6068]
[1609978177528,4.00959,1196.3,1195.9,4.00959]
[1609978178821,4.00959,1196.3,1195.7,46.6068]
[1609978179421,4.00959,1195.9,1195.8,4.00959]
[1609978180924,4.00959,1195.9,1195.7,46.6068]
[1609978183230,4.00959,1195.9,1192.8,5.9667]
[1609978183431,3.0218,1196.3,1194.8,4.00959]
[1609978184231,3.0218,1196.3,1192.8,5.9667]
[1609978185434,4.00959,1194.4,1194.1,4.00959]
[1609978185833,4.00959,1194.4,1192.8,5.9667]
[1609978186834,4.00959,1194.4,1191.1,30.0]
[1609978187034,4.00959,1194.4,1191.2,5.6282]
[1609978187535,4.00959,1193.6,1193.1,4.00959]
[1609978188735,2.5919,1195.4,1193.1,4.00959]
[1609978189342,6.0172,1195.7,1193.1,4.00959]
[1609978189540,6.0172,1195.7,1191.2,35.6282]
[1609978189741,6.0172,1195.7,1191.3,5.6888]
[1609978189942,6.0172,1195.7,1191.3,35.6888]
[1609978191443,4.00959,1194.5,1194.3,4.00959]
[1609978192241,63.4732,1194.6,1194.3,4.00959]
[1609978192942,63.4732,1194.6,1192.5,54.5316]
[1609978193442,4.00959,1193.5,1193.2,4.00959]
[1609978193743,63.4732,1194.6,1193.2,4.00959]
[1609978195543,4.00959,1194.2,1192.5,54.5316]
[1609978196346,63.4732,1194.6,1192.5,54.5316]
[1609978197445,4.00959,1194.3,1194.2,4.00959]
[1609978197646,63.4732,1194.6,1194.2,4.00959]
[1609978199047,9.3648,1195.7,1194.2,4.00959]
[1609978199748,4.00959,1194.5,1194.2,4.00959]
[1609978201647,4.00959,1194.6,1192.9,46.9744]
[1609978203548,4.00959,1194.2,1193.9,4.00959]
[1609978205553,4.00959,1194.0,1193.9,4.00959]
[1609978208053,4.00959,1194.0,1192.9,46.9744]
[1609978209554,4.00959,1194.0,1193.9,4.00959]
[1609978210359,4.00959,1194.0,1192.6,65.4281]
[1609978211660,4.00959,1194.0,1193.9,4.00959]
[1609978211861,4.00959,1194.0,1192.6,65.4281]
[1609978212862,65.3508,1195.0,1192.6,65.4281]
[1609978213563,4.00959,1194.4,1194.2,4.00959]
[1609978214264,4.00959,1194.4,1192.6,65.4281]
[1609978215164,65.3508,1195.0,1192.6,65.4281]
[1609978215766,4.00959,1194.5,1194.4,4.00959]
[1609978216272,65.3508,1195.0,1194.4,4.00959]
[1609978217066,65.3508,1195.0,1192.6,65.4281]
[1609978217671,65.3508,1195.0,1194.3,4.00959]
[1609978218971,65.3508,1195.0,1192.6,65.4281]
[1609978219574,4.00959,1194.5,1194.0,4.00959]
[1609978219772,4.00959,1194.5,1193.6,66.2119]
[1609978221572,4.00959,1194.5,1193.8,4.00959]
[1609978223577,4.00959,1194.5,1194.2,4.00959]
[1609978223878,4.00959,1194.5,1193.6,66.2119]
[1609978225681,4.00959,1194.5,1194.0,4.00959]
[1609978226083,4.00959,1194.5,1193.6,66.2119]
[1609978227581,4.00959,1194.7,1194.4,4.00959]
[1609978227880,58.099,1195.7,1194.4,4.00959]
[1609978229081,9.6912,1195.7,1194.5,62.2302]
[1609978229682,4.00959,1195.0,1194.5,62.2302]
[1609978235490,9.6912,1195.7,1194.5,62.2302]
[1609978235691,9.6912,1195.7,1195.1,4.00959]
[1609978235992,9.6912,1195.7,1194.5,62.2302]
[1609978236693,11.3848,1195.7,1194.5,62.2302]
[1609978237193,9.6912,1195.7,1194.5,62.2302]
[1609978237898,4.00959,1194.9,1194.7,4.00959]
[1609978238999,9.6912,1195.7,1194.7,4.00959]
[1609978239803,9.6912,1195.7,1194.2,54.7494]
[1609978240801,6.0172,1195.7,1194.2,54.7494]
[1609978241702,7.7021,1195.7,1194.2,54.7494]
[1609978241902,7.7021,1195.7,1195.3,4.00959]
[1609978242203,6.0172,1195.7,1195.3,4.00959]
[1609978242605,6.0172,1195.7,1194.2,54.7494]
[1609978243804,6.0172,1195.7,1195.3,4.00959]
[1609978243805,4.00959,1195.5,1195.3,4.00959]
[1609978244306,5.65849,1195.5,1195.3,4.00959]
[1609978244706,1.6489,1195.5,1195.3,4.00959]
[1609978245305,56.7717,1195.9,1195.3,4.00959]
[1609978245907,4.00959,1195.8,1195.6,4.00959]
[1609978246107,4.00959,1195.8,1194.2,54.7494]
[1609978246606,5.66779,1195.8,1194.2,54.7494]
[1609978247509,1.6582,1195.8,1194.2,54.7494]
[1609978247709,56.7717,1195.9,1194.2,54.7494]
[1609978248010,4.00959,1196.0,1195.8,4.00959]
[1609978248209,5.7455,1196.5,1195.8,4.00959]
[1609978248712,1.6547,1197.7,1195.8,4.00959]
[1609978248911,5.5662,1197.9,1195.8,4.00959]
[1609978249810,4.00959,1197.1,1196.9,4.00959]
[1609978250811,1.6924,1197.1,1196.9,4.00959]
[1609978251011,3.674,1198.0,1196.9,4.00959]
[1609978251711,6.029,1198.4,1196.9,4.00959]
[1609978251912,4.00959,1197.8,1197.2,4.00959]
[1609978253812,4.00959,1197.6,1197.2,4.00959]
[1609978255413,4.00959,1197.6,1194.2,30.0]
[1609978255815,4.00959,1197.3,1197.2,4.00959]
[1609978256015,4.00959,1197.3,1194.2,30.0]
[1609978256715,3.674,1198.0,1194.2,30.0]
[1609978257215,5.3327,1198.0,1195.7,59.0808]
[1609978257517,6.029,1198.4,1195.7,59.0808]
[1609978257717,6.029,1198.4,1195.8,5.9424]
[1609978257915,4.00959,1198.0,1197.9,4.00959]
[1609978258115,4.00959,1198.0,1195.8,5.9424]
[1609978258918,5.66179,1198.0,1195.8,5.9424]
[1609978259119,5.66179,1198.0,1196.5,63.8571]
[1609978259521,4.00959,1198.0,1196.5,63.8571]
[1609978259719,5.69409,1198.0,1196.5,63.8571]
[1609978261320,4.00959,1198.0,1196.5,63.8571]
[1609978261920,4.00959,1197.8,1196.5,63.8571]
[1609978263921,4.00959,1197.8,1197.2,4.00959]
[1609978264220,6.029,1198.4,1197.2,4.00959]
[1609978265622,69.1139,1199.5,1197.2,4.00959]
[1609978266025,69.1139,1199.5,1198.6,4.00959]
[1609978266420,69.1139,1199.5,1196.5,63.8571]
[1609978266722,2.2762,1200.0,1196.0,5.8463]
[1609978266922,5.9502,1200.0,1196.0,5.8463]
[1609978267625,5.8481,1199.9,1196.0,5.8463]
[1609978267925,4.00959,1198.5,1198.2,4.00959]
[1609978268523,4.00959,1198.5,1196.0,5.8463]
[1609978269225,5.65419,1198.5,1196.0,5.8463]
[1609978269627,4.00959,1198.5,1195.8,5.9424]
[1609978269926,5.8481,1199.9,1195.8,5.9424]
[1609978270528,35.8481,1199.9,1195.8,5.9424]
[1609978270827,5.9881,1199.8,1195.8,5.9424]
[1609978271229,13.3651,1199.8,1195.8,35.9424]
[1609978271829,15.0311,1199.8,1195.8,35.9424]
[1609978272029,4.00959,1198.2,1197.8,4.00959]
[1609978272429,15.0311,1199.8,1197.8,4.00959]
[1609978272831,7.6541,1199.8,1197.8,4.00959]
[1609978273030,5.9881,1199.8,1197.8,4.00959]
[1609978273432,7.665,1199.8,1197.8,4.00959]
[1609978273631,1.6769,1199.8,1197.8,4.00959]
[1609978274033,1.6769,1199.8,1196.0,35.647]
[1609978274938,8.3307,1200.8,1196.0,35.647]
[1609978276039,4.00959,1199.5,1199.3,4.00959]
[1609978278142,5.69289,1199.5,1199.3,4.00959]
[1609978278843,5.69289,1199.5,1196.0,35.647]
[1609978279142,4.00959,1199.5,1196.0,35.647]
[1609978279947,5.8888,1200.8,1199.2,4.00959]
[1609978281950,4.00959,1199.3,1199.2,4.00959]
[1609978282150,5.69119,1199.3,1199.2,4.00959]
[1609978282350,5.8888,1200.8,1199.2,4.00959]
[1609978284051,4.00959,1199.5,1196.0,35.647]
[1609978285952,4.00959,1199.5,1199.2,4.00959]
[1609978286558,5.70149,1199.5,1199.2,4.00959]
[1609978286759,5.70149,1199.5,1196.0,35.647]
[1609978287060,4.00959,1199.5,1196.0,5.647]
[1609978287258,4.00959,1199.5,1196.0,35.647]
[1609978287859,5.68589,1199.5,1196.0,35.647]
[1609978288058,5.68589,1199.5,1199.3,4.00959]
[1609978288359,5.68589,1199.5,1196.0,35.647]
[1609978288658,4.00959,1199.5,1196.0,35.647]
[1609978289160,4.00959,1199.5,1197.1,68.437]
[1609978289660,5.65799,1199.5,1197.2,5.6103]
[1609978289860,4.00959,1199.5,1197.2,5.6103]
[1609978290061,4.00959,1199.2,1198.9,4.00959]
[1609978290462,56.2249,1200.7,1198.9,4.00959]
[1609978291765,56.2249,1200.7,1197.2,5.6103]
[1609978291965,4.00959,1198.9,1198.8,4.00959]
[1609978292265,56.2249,1200.7,1198.8,4.00959]
[1609978293066,57.895,1200.7,1198.8,4.00959]
[1609978293467,56.2249,1200.7,1198.8,4.00959]
[1609978293966,4.00959,1199.2,1199.0,4.00959]
[1609978294468,5.67259,1199.2,1197.2,5.6103]
[1609978294667,4.00959,1199.2,1197.2,5.6103]
[1609978296166,5.9124,1199.8,1199.0,4.00959]
[1609978296368,5.9124,1199.8,1197.2,5.6103]
[1609978296969,7.5679,1199.8,1197.2,5.6103]
[1609978297167,5.9124,1199.8,1197.2,5.6103]
[1609978298077,4.00959,1199.1,1197.2,5.6103]
[1609978300269,4.00959,1198.5,1198.3,4.00959]
[1609978302271,4.00959,1198.5,1197.9,4.00959]
[1609978302470,4.00959,1198.5,1196.0,5.647]
[1609978302769,4.00959,1198.5,1196.1,5.6247]
[1609978304370,4.00959,1197.9,1197.7,4.00959]
[1609978304571,2.3043,1199.2,1197.7,4.00959]
[1609978305571,2.3043,1199.2,1196.4,53.2852]
[1609978306372,4.00959,1198.2,1198.0,4.00959]
[1609978306872,49.3789,1199.4,1198.0,4.00959]
[1609978308477,4.00959,1198.9,1198.7,4.00959]
[1609978310179,49.3789,1199.4,1198.7,4.00959]
[1609978310380,53.38849,1199.4,1199.3,4.00959]
[1609978310578,53.38849,1199.4,1196.5,30.0]
[1609978312381,53.38849,1199.4,1199.1,4.00959]
[1609978312982,53.38849,1199.4,1196.5,30.0]
[1609978313682,4.00959,1199.4,1197.1,57.004]
[1609978314183,4.00959,1199.4,1197.2,5.8959]
[1609978314383,4.00959,1199.2,1197.2,5.8959]
[1609978314787,4.00959,1199.2,1197.1,57.004]
[1609978316385,4.00959,1198.6,1198.3,4.00959]
[1609978316684,4.00959,1198.6,1197.1,57.004]
[1609978318385,4.00959,1198.6,1198.4,4.00959]
[1609978318686,4.00959,1198.6,1197.1,57.004]
[1609978319086,4.00959,1198.6,1196.3,5.8682]
[1609978319489,4.00959,1198.6,1196.4,61.4737]
[1609978319988,54.0815,1199.4,1196.4,91.4737]
[1609978320388,4.00959,1198.9,1198.6,4.00959]
[1609978321088,4.00959,1198.9,1196.4,91.4737]
[1609978321388,54.0815,1199.4,1196.4,91.4737]
[1609978322592,4.00959,1198.9,1198.7,4.00959]
[1609978322893,4.00959,1198.9,1196.4,91.4737]
[1609978323093,4.00959,1198.9,1196.9,48.5435]
[1609978324302,4.00959,1198.9,1196.9,78.5435]
[1609978324494,3.674,1200.0,1198.7,4.00959]
[1609978326395,4.00959,1198.8,1198.5,4.00959]
[1609978326595,4.00959,1198.8,1196.9,48.5435]
[1609978328494,5.8397,1199.8,1198.2,4.00959]
[1609978330595,4.00959,1198.3,1198.2,4.00959]
[1609978330897,4.00959,1198.3,1196.9,48.5435]
[1609978332498,5.6061,1199.7,1197.9,4.00959]
[1609978334398,5.6061,1199.7,1196.3,35.8682]
[1609978334701,4.00959,1198.0,1196.3,35.8682]
[1609978334999,4.00959,1198.0,1196.3,5.8682]
[1609978336501,4.00959,1197.5,1197.4,4.00959]
[1609978336899,30.0,1199.5,1196.3,5.8682]
[1609978337599,30.0,1199.5,1194.7,5.7879]
[1609978337803,30.0,1199.5,1194.7,41.8376]
[1609978338500,4.00959,1197.5,1197.1,4.00959]
[1609978340603,4.00959,1197.2,1197.1,4.00959]
[1609978341005,4.00959,1197.2,1194.7,11.8376]
[1609978341206,4.00959,1197.2,1194.7,41.8376]
[1609978342305,4.00959,1197.2,1194.7,11.8376]
[1609978342505,5.9244,1198.8,1196.9,4.00959]
[1609978344607,4.00959,1197.1,1196.9,4.00959]
[1609978345007,5.9244,1198.8,1196.9,4.00959]
[1609978346008,5.9244,1198.8,1194.7,11.8376]
[1609978346209,35.9244,1198.8,1194.7,11.8376]
[1609978346608,35.9244,1198.8,1196.5,4.00959]
[1609978347310,5.9244,1198.8,1196.5,4.00959]
[1609978347613,35.9244,1198.8,1196.5,4.00959]
[1609978348510,35.9244,1198.8,1196.7,4.00959]
[1609978349111,50.8703,1198.5,1195.1,60.2442]
[1609978349312,54.1391,1198.5,1195.1,60.2442]
[1609978349814,84.1391,1198.5,1195.1,60.2442]
[1609978350614,4.00959,1195.7,1195.5,4.00959]
[1609978350813,4.00959,1195.7,1195.1,60.2442]
[1609978351314,46.7896,1197.2,1195.0,48.2569]
[1609978351517,6.1368,1197.1,1195.0,48.2569]
[1609978352517,4.00959,1195.1,1195.0,48.2569]
[1609978354018,4.00959,1195.1,1191.4,133.9138]
[1609978354218,4.00959,1195.1,1190.6,30.0]
[1609978354718,4.00959,1193.8,1193.5,49.5909]
[1609978355822,5.70499,1193.8,1193.5,49.5909]
[1609978356621,4.00959,1193.8,1193.5,49.5909]
[1609978358626,4.00959,1193.6,1193.5,49.5909]
[1609978359628,4.00959,1193.6,1192.8,4.00959]
[1609978360630,4.00959,1193.4,1192.8,4.00959]
[1609978361931,4.00959,1193.4,1192.6,52.36]
[1609978362532,4.00959,1193.4,1192.8,4.00959]
[1609978363731,4.00959,1193.4,1192.6,52.36]
[1609978364435,66.0351,1194.5,1192.6,52.36]
[1609978365738,67.6998,1194.5,1192.6,52.36]
[1609978365937,66.0351,1194.5,1192.6,52.36]
[1609978366638,4.00959,1194.1,1192.6,52.36]
[1609978368744,4.00959,1193.6,1193.5,4.00959]
[1609978369643,1.6829,1193.6,1193.5,4.00959]
[1609978370046,3.2193,1195.7,1190.4,30.0]
[1609978370446,32.8391,1196.3,1190.4,30.0]
[1609978371049,32.8391,1196.3,1188.9,30.0]
[1609978371246,2.8391,1196.3,1188.9,30.0]
[1609978371445,30.0,1196.7,1188.9,30.0]
[1609978372348,31.6636,1196.7,1188.9,30.0]
[1609978372545,30.0,1196.7,1188.9,30.0]
[1609978372746,4.00959,1193.2,1193.1,4.00959]
[1609978373548,4.00959,1193.2,1188.9,30.0]
[1609978374649,3.0539,1195.5,1193.0,4.00959]